bitfinex-derivatives/quotes_ETHF0:USTF0_20220103
["timestamp","ask_amount","ask_price","bid_price","bid_amount"]
[1641192328921,1.74205619,3806.6,3806.0,2.50673638]
[1641192329220,1.18383408,3806.6,3806.0,2.50673638]
[1641192329420,1.18383408,3806.6,3806.0,0.7204]
[1641192330522,2.00479,3806.7,3806.0,0.7204]
[1641192330722,2.00479,3806.7,3805.9,3.19075472]
[1641192330924,2.132947,3806.7,3805.9,3.19075472]
[1641192332628,0.128157,3806.7,3805.9,3.97898899]
[1641192333530,0.128157,3806.7,3806.4,2.00479]
[1641192333932,0.229991,3806.6,3806.4,2.00479]
[1641192334132,0.128157,3806.7,3806.4,2.00479]
[1641192334834,0.128157,3806.7,3806.0,1.18596472]
[1641192335535,0.128157,3806.7,3806.4,2.00479]
[1641192336335,0.229991,3806.6,3806.4,2.00479]
[1641192338844,0.128157,3806.7,3806.4,2.00479]
[1641192339042,0.229991,3806.6,3806.4,2.00479]
[1641192340244,0.8847181,3806.5,3806.4,2.00479]
[1641192342145,0.229991,3806.6,3806.4,2.00479]
[1641192342346,0.55821664,3806.5,3806.4,2.00479]
[1641192343247,1.41382508,3806.6,3806.4,2.00479]
[1641192343648,0.229991,3806.5,3806.4,2.00479]
[1641192344050,0.78820764,3806.5,3806.4,2.00479]
[1641192345052,1.11847926,3806.5,3806.4,2.00479]
[1641192345652,0.78820764,3806.5,3806.4,2.00479]
[1641192346254,0.55821664,3806.5,3806.4,2.00479]
[1641192346454,0.55821664,3806.5,3806.4,2.79292402]
[1641192347652,0.88841394,3806.5,3806.4,2.79292402]
[1641192348652,1.11840494,3806.5,3806.4,2.79292402]
[1641192348852,0.88841394,3806.5,3806.4,2.79292402]
[1641192349055,0.128157,3806.7,3806.4,2.79292402]
[1641192349252,1.18383408,3806.7,3806.4,2.79292402]
[1641192350455,0.88851488,3806.5,3806.4,2.79292402]
[1641192350855,1.11850588,3806.5,3806.4,2.79292402]
[1641192351363,0.229991,3806.5,3806.4,2.79292402]
[1641192352156,0.55821664,3806.5,3806.4,2.79292402]
[1641192353560,0.55821664,3806.6,3806.4,2.79292402]
[1641192354858,0.229991,3806.5,3806.4,2.79292402]
[1641192355263,1.11719999,3806.5,3806.4,2.79292402]
[1641192356462,0.88720899,3806.5,3806.4,2.79292402]
[1641192357063,0.88720899,3806.6,3806.4,2.79292402]
[1641192358365,0.229991,3806.5,3806.4,2.79292402]
[1641192361166,0.88720899,3806.6,3806.4,2.79292402]
[1641192361369,0.229991,3806.5,3806.4,2.79292402]
[1641192361569,0.88720899,3806.6,3806.4,2.79292402]
[1641192361773,0.88720899,3806.6,3806.4,3.48182402]
[1641192362069,0.39577657,3806.8,3806.4,3.48182402]
[1641192362768,0.39577657,3806.8,3806.5,4.203225]
[1641192362969,0.39577657,3806.8,3806.6,1.3122929]
[1641192363369,1.47461224,3807.1,3806.6,1.3122929]
[1641192363570,1.47461224,3807.5,3806.6,1.3122929]
[1641192363770,1.47461224,3807.5,3807.3,2.00479]
[1641192364372,0.68626652,3807.6,3807.3,2.00479]
[1641192364569,0.229991,3807.5,3806.7,1.78633638]
[1641192364769,0.68626652,3807.6,3806.7,1.78633638]
[1641192365571,2.05800952,3807.4,3806.7,1.78633638]
[1641192365772,2.59810952,3807.4,3806.9,2.00479]
[1641192366470,1.09820952,3807.4,3806.9,2.00479]
[1641192366873,2.03272176,3807.3,3806.9,2.00479]
[1641192367070,3.53262176,3807.3,3806.9,2.00479]
[1641192367270,1.4999,3807.0,3806.9,2.00479]
[1641192367470,1.729891,3807.0,3806.9,2.00479]
[1641192367773,5.739471,3807.0,3806.3,1.78633638]
[1641192367971,1.4999,3806.9,3806.1,0.72434762]
[1641192368171,1.4999,3806.5,3806.1,0.72434762]
[1641192368372,0.808156,3806.5,3806.1,0.72434762]
[1641192368571,0.808156,3806.5,3806.1,1.1965897]
[1641192368773,0.6858,3806.5,3806.1,1.1965897]
[1641192369673,2.00479,3806.4,3805.9,2.23193114]
[1641192369873,2.00479,3806.4,3805.5,2.00479]
[1641192369874,2.56289952,3806.4,3805.5,2.00479]
[1641192370676,0.55810952,3806.3,3805.5,2.00479]
[1641192371978,0.55810952,3806.3,3805.5,0.69129]
[1641192372775,0.55810952,3806.3,3805.6,0.37223265]
[1641192373176,0.55810952,3806.3,3805.9,1.18929394]
[1641192380282,2.00479,3806.4,3805.9,1.18929394]
[1641192380482,2.00479,3806.4,3806.0,1.18929394]
[1641192382687,0.88643902,3806.3,3806.2,0.89194815]
[1641192383789,1.11643002,3806.3,3806.2,0.89194815]
[1641192384490,1.11643002,3806.3,3806.0,1.18929394]
[1641192384690,0.88643902,3806.3,3806.0,1.18929394]
[1641192385192,2.00479,3806.4,3806.2,0.89195716]
[1641192385394,0.78834226,3806.3,3806.2,0.89195716]
[1641192387196,0.55835126,3806.3,3806.2,0.89195716]
[1641192387599,0.78834226,3806.3,3806.2,0.89195716]
[1641192387998,0.229991,3806.3,3806.2,0.89195716]
[1641192390403,0.229991,3806.3,3806.1,0.89195716]
[1641192392204,2.00479,3806.4,3806.1,0.89195716]
[1641192392405,0.229991,3806.3,3806.1,0.89195716]
[1641192392707,2.00479,3806.4,3806.1,0.89195716]
[1641192393207,2.00479,3806.4,3806.0,0.89195716]
[1641192394006,0.55837455,3806.3,3806.0,0.89195716]
[1641192394206,0.229991,3806.2,3806.0,0.89195716]
[1641192394706,0.128157,3806.1,3806.0,0.89195716]
[1641192396307,0.358148,3806.1,3806.0,0.89195716]
[1641192396509,0.358148,3806.1,3805.9,0.89195716]
[1641192396708,0.358148,3806.1,3806.0,0.89195716]
[1641192398011,0.128157,3806.1,3806.0,0.89195716]
[1641192398214,0.358148,3806.1,3806.0,0.89195716]
[1641192398812,0.358148,3806.1,3805.9,0.89195716]
[1641192399011,1.110148,3806.1,3805.9,0.89195716]
[1641192399211,1.232504,3806.1,3805.9,0.89195716]
[1641192399412,1.110148,3806.1,3805.9,0.89195716]
[1641192399812,1.622256,3806.0,3805.6,1.18880992]
[1641192400011,1.4999,3805.9,3805.1,1.78392954]
[1641192400412,5.50948,3805.2,3805.1,1.78392954]
[1641192400612,5.024328,3805.2,3805.1,1.78392954]
[1641192401113,5.024328,3805.2,3804.5,1.78392954]
[1641192401710,5.024328,3805.2,3804.6,0.37236403]
[1641192402312,2.00479,3804.8,3804.6,0.37236403]
[1641192402512,2.00479,3804.8,3804.2,1.52663053]
[1641192402812,2.00479,3804.8,3804.3,0.37237279]
[1641192403815,2.00479,3804.8,3803.9,9.03315067]
[1641192404017,2.789547,3805.2,3803.9,9.03315067]
[1641192404216,2.132947,3805.2,3803.9,9.03315067]
[1641192404416,2.132947,3805.2,3804.5,2.00479]
[1641192405622,2.00479,3805.2,3804.5,2.79889]
[1641192406122,2.00479,3805.7,3804.7,1.31294591]
[1641192406321,2.00479,3805.7,3804.9,2.00479]
[1641192408822,0.128157,3805.6,3804.9,2.00479]
[1641192411225,0.128157,3805.6,3805.3,1.18890721]
[1641192411624,0.229991,3805.5,3805.3,1.18890721]
[1641192411825,0.229991,3805.5,3805.2,1.18890721]
[1641192413327,2.00479,3805.7,3805.1,1.18890721]
[1641192413829,0.128157,3805.6,3805.1,1.18890721]
[1641192414830,0.68657752,3805.6,3805.5,1.18890721]
[1641192415230,0.91656852,3805.6,3805.5,1.18890721]
[1641192418532,0.358148,3805.6,3805.5,1.18890721]
[1641192418734,0.358148,3805.6,3805.3,1.18890721]
[1641192420535,0.128157,3805.6,3805.3,1.18890721]
[1641192421836,0.229991,3805.5,3805.3,1.18890721]
[1641192422036,0.128157,3805.6,3805.3,1.18890721]
[1641192423338,0.229991,3805.5,3805.3,1.18890721]
[1641192423540,0.229991,3805.5,3805.4,1.18890721]
[1641192424940,0.128157,3805.6,3805.4,1.18890721]
[1641192425142,0.229991,3805.5,3805.4,1.18890721]
[1641192425342,0.128157,3805.6,3805.4,1.18890721]
[1641192425944,0.229991,3805.5,3805.4,1.18890721]
[1641192427045,0.229991,3805.5,3805.3,1.18890721]
[1641192427646,1.01486954,3805.6,3805.3,1.18890721]
[1641192427847,0.128157,3805.6,3805.3,1.18890721]
[1641192428047,0.229991,3805.5,3805.3,1.18890721]
[1641192428447,0.128157,3805.6,3805.3,1.18890721]
[1641192428648,1.01486954,3805.6,3805.3,1.18890721]
[1641192429448,0.88671254,3805.6,3805.3,1.18890721]
[1641192431150,0.88671254,3805.6,3805.5,0.89201379]
[1641192431351,1.11670354,3805.6,3805.5,0.89201379]
[1641192432353,1.24486054,3805.6,3805.5,0.89201379]
[1641192432554,1.24486054,3805.6,3805.3,1.18890721]
[1641192434556,2.00479,3805.4,3805.3,1.18890721]
[1641192437859,2.234781,3805.4,3805.3,1.18890721]
[1641192441265,2.00479,3805.4,3805.3,1.18890721]
[1641192443268,2.234781,3805.4,3805.3,1.18890721]
[1641192444670,2.00479,3805.4,3805.3,1.18890721]
[1641192444871,2.234781,3805.4,3805.3,1.18890721]
[1641192446475,3.12149354,3805.4,3805.1,1.18890721]
[1641192446675,2.89150254,3805.4,3805.1,1.18890721]
[1641192446877,0.229991,3805.3,3805.1,1.18890721]
[1641192447075,2.89150254,3805.4,3805.1,1.18890721]
[1641192447275,2.89150254,3805.4,3805.2,1.18890721]
[1641192447975,0.229991,3805.3,3805.2,1.18890721]
[1641192449278,0.797191,3805.3,3805.2,1.18890721]
[1641192449879,0.5672,3805.3,3805.2,1.18890721]
[1641192450282,0.797191,3805.3,3805.2,1.18890721]
[1641192451379,0.5672,3805.3,3805.2,1.18890721]
[1641192451980,0.797191,3805.3,3805.2,1.18890721]
[1641192453081,0.5672,3805.3,3805.2,1.18890721]
[1641192454787,0.88671254,3805.4,3805.2,1.18890721]
[1641192454983,1.11670354,3805.4,3805.2,1.18890721]
[1641192455183,2.00479,3805.3,3805.1,1.18890721]
[1641192456687,0.229991,3805.2,3805.1,1.18890721]
[1641192457390,2.00479,3805.3,3805.1,1.18890721]
[1641192457591,2.00479,3805.3,3805.1,1.56128601]
[1641192457789,0.229991,3805.2,3805.1,1.18890721]
[1641192458288,2.00479,3805.3,3805.1,1.56128488]
[1641192458688,2.00479,3805.3,3805.1,0.37237767]
[1641192458889,0.55848855,3805.2,3804.7,6.84345952]
[1641192459290,0.55848855,3805.2,3805.1,2.73448002]
[1641192459489,2.00479,3805.3,3805.1,3.24508002]
[1641192459690,0.88839618,3805.2,3805.1,3.24508002]
[1641192459892,0.88839618,3805.2,3805.1,3.61745407]
[1641192460594,2.89318618,3805.3,3805.1,3.61745407]
[1641192460991,2.89318618,3805.3,3805.2,0.37237405]
[1641192463399,3.25133418,3805.3,3805.2,0.37237405]
[1641192463798,2.89318618,3805.3,3805.2,0.37237405]
[1641192465903,0.88839618,3805.4,3805.2,0.37237405]
[1641192467404,2.00479,3805.3,3805.2,0.37237405]
[1641192467606,2.89318618,3805.3,3805.2,0.37237405]
[1641192470005,3.12317718,3805.3,3805.2,0.37237405]
[1641192470307,2.234781,3805.3,3805.2,0.37237405]
[1641192471208,3.12317718,3805.3,3805.2,0.37237405]
[1641192471408,2.89318618,3805.3,3805.2,0.37237405]
[1641192471611,3.12317718,3805.3,3805.2,0.37237405]
[1641192471908,2.89318618,3805.3,3805.2,0.37237405]
[1641192472109,2.00479,3805.3,3805.2,0.37237405]
[1641192472511,2.234781,3805.3,3805.2,0.37237405]
[1641192472711,3.12317718,3805.3,3805.2,0.37237405]
[1641192475013,2.234781,3805.3,3805.2,0.37237405]
[1641192475214,2.79325933,3805.3,3805.2,0.37237405]
[1641192475613,2.79325933,3805.3,3804.9,0.37237405]
[1641192475914,2.79325933,3805.3,3804.7,4.21670234]
[1641192476115,2.79325933,3805.3,3805.0,0.37238442]
[1641192476514,2.79325933,3805.3,3805.2,1.1908785]
[1641192477120,2.56326833,3805.3,3805.2,2.50364343]
[1641192477617,2.56326833,3805.3,3805.2,2.87600067]
[1641192477816,2.00479,3805.3,3805.2,1.68512217]
[1641192478719,2.234781,3805.3,3805.2,1.68512217]
[1641192479117,2.00479,3805.3,3805.2,1.68512217]
[1641192479518,2.89498315,3805.3,3805.2,1.68512217]
[1641192481622,3.12497415,3805.3,3805.2,1.68512217]
[1641192482720,2.89498315,3805.3,3805.2,1.31276493]
[1641192483122,3.12497415,3805.3,3804.9,1.78337333]
[1641192483322,3.12497415,3805.3,3805.2,0.37235585]
[1641192483522,3.12497415,3805.3,3805.0,0.37235585]
[1641192484127,2.89498315,3805.3,3805.2,0.37235585]
[1641192484525,2.89498315,3805.3,3805.1,0.37235585]
[1641192484727,2.89498315,3805.3,3805.2,0.37235585]
[1641192484925,3.12497415,3805.3,3805.2,0.37235585]
[1641192486128,3.12497415,3805.3,3804.9,0.37235585]
[1641192487130,0.89019315,3805.2,3804.9,0.37235585]
[1641192487832,0.89019315,3805.2,3804.8,0.37235585]
[1641192491336,0.122356,3805.1,3804.8,0.37235585]
[1641192491537,0.229991,3805.0,3804.8,0.37235585]
[1641192492435,1.12018415,3805.0,3804.8,0.37235585]
[1641192493035,1.12018415,3805.0,3804.5,0.37235585]
[1641192493237,1.12018415,3805.0,3804.9,0.37235585]
[1641192493636,0.89019315,3804.9,3804.5,0.37235585]
[1641192493837,1.01835015,3804.9,3804.4,3.78816333]
[1641192497944,1.01835015,3804.9,3804.4,2.00479]
[1641192500048,0.89019315,3804.6,3804.4,2.00479]
[1641192500251,0.229991,3804.5,3804.4,2.00479]
[1641192501850,0.89019315,3804.7,3804.4,2.00479]
[1641192502651,0.229991,3804.6,3804.4,2.00479]
[1641192504554,0.89019315,3804.7,3804.4,2.00479]
[1641192504754,0.229991,3804.6,3804.4,2.00479]
[1641192504956,0.89019315,3804.7,3804.4,2.00479]
[1641192506456,0.128157,3804.9,3804.6,1.18925576]
[1641192506858,0.229991,3804.8,3804.6,1.18925576]
[1641192508759,0.229991,3804.8,3804.4,2.00479]
[1641192510162,0.229991,3804.8,3804.1,2.00479]
[1641192510361,1.12018415,3804.8,3804.7,0.8919891]
[1641192513265,0.229991,3804.8,3804.1,2.00479]
[1641192513664,0.229991,3804.8,3804.2,0.37241483]
[1641192516272,1.12018415,3804.8,3804.7,0.89197613]
[1641192521978,1.12018415,3804.8,3804.0,2.00479]
[1641192521979,0.7885469,3804.8,3804.6,0.89197613]
[1641192522880,1.11984553,3804.8,3804.7,0.89197613]
[1641192523781,0.78854594,3804.8,3804.6,0.89197613]
[1641192524780,0.229991,3804.8,3804.6,0.89197613]
[1641192524982,1.11929577,3804.8,3804.5,0.89197613]
[1641192525186,1.4999,3804.7,3803.6,2.46531692]
[1641192525383,0.88930477,3804.8,3803.6,2.46531692]
[1641192525582,2.38920477,3804.8,3803.6,2.46531692]
[1641192525785,3.44655347,3804.9,3803.6,2.46531692]
[1641192526184,0.55859564,3804.7,3803.6,2.46531692]
[1641192526385,2.00479,3804.0,3803.4,2.75362405]
[1641192526584,2.00479,3804.0,3803.3,1.78337333]
[1641192526585,1.4999,3803.7,3803.3,1.78337333]
[1641192526783,0.250513,3803.9,3803.3,1.78337333]
[1641192528087,0.73475717,3803.8,3803.3,1.78337333]
[1641192528287,0.73475717,3803.8,3802.8,2.00479]
[1641192528486,2.00479,3803.6,3802.8,2.00479]
[1641192529587,0.55874618,3803.5,3802.8,2.00479]
[1641192530787,2.00479,3803.6,3802.8,2.00479]
[1641192534193,1.4999,3803.5,3802.8,2.00479]
[1641192534393,1.4999,3803.2,3802.8,2.00479]
[1641192534594,0.128157,3803.1,3802.6,26.2676]
[1641192534794,0.128157,3803.1,3802.4,1.78337333]
[1641192535694,0.128157,3803.1,3802.3,2.00479]
[1641192536896,0.55880037,3803.0,3802.3,2.00479]
[1641192537096,0.55880037,3803.0,3802.4,1.18933313]
[1641192538798,0.55880037,3803.0,3802.3,3.19412313]
[1641192540097,0.68695737,3803.1,3802.3,3.19412313]
[1641192540898,0.55880037,3803.0,3802.3,3.19412313]
[1641192542299,0.128157,3803.1,3802.4,1.18933313]
[1641192544406,0.5588144,3803.0,3802.3,3.19412313]
[1641192546009,0.88575705,3802.9,3802.6,0.89200773]
[1641192546208,0.229991,3802.8,3802.6,0.89200773]
[1641192546609,1.11574805,3802.8,3802.5,1.18933313]
[1641192548010,0.88575705,3802.8,3802.5,1.18933313]
[1641192549212,0.229991,3802.7,3802.5,1.18933313]
[1641192549614,1.11574805,3802.7,3802.5,1.18933313]
[1641192550815,0.88575705,3802.7,3802.6,3.54109608]
[1641192551720,1.18137752,3803.0,3802.6,3.54109608]
[1641192552017,1.47520307,3803.3,3803.0,2.42986274]
[1641192552217,1.47520307,3803.3,3803.0,0.615]
[1641192552620,1.18192354,3803.4,3803.2,1.5]
[1641192552819,1.47520307,3803.7,3803.2,1.5]
[1641192553019,1.47520307,3803.7,3803.6,2.00479]
[1641192554123,2.00479,3804.4,3803.6,2.00479]
[1641192555321,0.128157,3804.3,3803.6,2.00479]
[1641192556122,2.00479,3804.4,3803.6,2.00479]
[1641192557528,2.132947,3804.4,3803.6,2.00479]
[1641192560030,0.128157,3804.4,3803.4,4.57607879]
[1641192561032,2.132947,3804.4,3803.6,2.00479]
[1641192571350,2.132947,3804.4,3803.6,3.19271849]
[1641192572150,0.128157,3804.4,3803.6,1.18792849]
[1641192572348,2.49307637,3804.7,3803.6,1.18792849]
[1641192572749,0.122356,3804.6,3803.6,1.18792849]
[1641192572951,2.49307637,3804.7,3803.6,1.18792849]
[1641192573149,2.00479,3804.1,3803.9,0.89101535]
[1641192573949,0.229991,3804.0,3803.9,0.89101535]
[1641192574150,0.358148,3804.0,3803.9,0.89101535]
[1641192574652,0.358148,3804.0,3803.7,0.89101535]
[1641192579358,1.167148,3804.0,3803.7,0.89101535]
[1641192580461,1.038991,3804.0,3803.7,0.89101535]
[1641192581265,1.167148,3804.0,3803.7,0.89101535]
[1641192583071,0.937157,3804.0,3803.7,0.89101535]
[1641192583271,0.937157,3804.0,3803.8,0.89101535]
[1641192583870,0.809,3804.0,3803.5,1.18792849]
[1641192584272,2.00479,3804.1,3803.5,1.18792849]
[1641192584473,0.55864279,3803.9,3803.5,1.18792849]
[1641192584678,0.55864279,3803.9,3803.4,2.62816495]
[1641192585473,0.88844314,3803.8,3803.4,2.62816495]
[1641192586574,1.64154314,3803.8,3803.4,2.62816495]
[1641192589179,0.88844314,3803.7,3803.4,0.84479162]
[1641192592484,0.229991,3803.6,3803.4,0.84479162]
[1641192592685,0.229991,3803.6,3803.4,2.62816495]
[1641192594387,0.229991,3803.6,3803.4,0.84479162]
[1641192594987,0.229991,3803.6,3803.3,3.78816333]
[1641192595188,1.11843414,3803.6,3803.3,3.78816333]
[1641192596288,1.11843414,3803.6,3803.3,2.00479]
[1641192596791,0.88844314,3803.6,3803.3,2.00479]
[1641192597893,0.88844314,3803.7,3803.3,3.78816333]
[1641192600699,1.0125556,3803.6,3803.3,3.78816333]
[1641192600896,0.229991,3803.5,3803.3,3.78816333]
[1641192602400,0.229991,3803.5,3803.3,1.78337333]
[1641192602801,0.88844314,3803.4,3803.0,1.78337333]
[1641192603506,2.00479,3803.3,3803.0,1.78337333]
[1641192603703,0.229991,3803.2,3803.0,1.78337333]
[1641192604201,0.229991,3803.2,3802.9,3.23125674]
[1641192604400,0.128157,3803.1,3802.9,3.23125674]
[1641192604601,0.352347,3803.0,3802.6,2.22952621]
[1641192604802,0.851991,3803.0,3802.6,2.22952621]
[1641192605001,0.851991,3803.0,3802.3,2.97270162]
[1641192605002,0.974347,3803.0,3802.3,2.97270162]
[1641192605501,2.00479,3802.6,3802.3,2.97270162]
[1641192605707,0.229991,3802.5,3802.3,2.97270162]
[1641192607003,0.229991,3802.5,3802.0,1.21695175]
[1641192607604,0.229991,3802.5,3802.1,0.37258757]
[1641192610107,0.229991,3802.5,3801.9,2.66721111]
[1641192611408,0.229991,3802.5,3802.0,0.37262753]
[1641192611608,0.88844314,3802.3,3802.0,0.37262753]
[1641192612008,1.01660014,3802.3,3802.0,0.37262753]
[1641192612209,1.01660014,3802.3,3801.9,1.3138947]
[1641192612410,0.229991,3802.2,3801.9,1.3138947]
[1641192613611,0.229991,3802.2,3802.0,1.78806362]
[1641192614711,0.128157,3802.3,3802.0,1.78806362]
[1641192615111,0.229991,3802.2,3802.0,1.78806362]
[1641192616513,0.229991,3802.2,3801.9,1.78806362]
[1641192617113,1.11843414,3802.2,3801.9,1.78806362]
[1641192618217,0.229991,3802.2,3801.9,1.78806362]
[1641192619514,1.11843414,3802.2,3801.9,1.78806362]
[1641192621218,0.229991,3802.2,3801.7,2.00479]
[1641192621416,0.229991,3802.2,3801.6,0.88815851]
[1641192621915,0.229991,3802.2,3801.7,2.00479]
[1641192628622,0.128157,3802.3,3801.7,2.00479]
[1641192629629,1.4999,3802.1,3801.3,2.89294851]
[1641192629827,11.8151,3802.1,3801.0,1.18421135]
[1641192630027,2.00479,3801.5,3801.0,1.18421135]
[1641192630225,0.250513,3801.4,3801.0,1.18421135]
[1641192630427,1.12943723,3801.4,3800.7,1.87360135]
[1641192630627,1.00708123,3801.4,3800.8,1.18439187]
[1641192631030,1.00708123,3801.4,3800.8,2.68439187]
[1641192631426,2.00479,3801.5,3800.8,2.68439187]
[1641192631629,2.00479,3801.5,3801.2,1.31414506]
[1641192632828,0.229991,3801.4,3801.0,5.26174525]
[1641192633028,2.00479,3801.5,3801.0,5.26174525]
[1641192633632,2.00479,3801.5,3801.1,1.5]
[1641192634330,2.00479,3801.5,3801.0,6.44613712]
[1641192635031,0.81920056,3802.2,3801.0,6.44613712]
[1641192635431,0.81920056,3802.2,3801.2,1.31414506]
[1641192636233,2.00479,3801.8,3801.2,1.31414506]
[1641192636832,2.00479,3801.8,3801.0,5.26174525]
[1641192637034,2.00479,3801.8,3801.2,1.31416061]
[1641192641037,0.128157,3801.9,3801.2,1.31416061]
[1641192641238,0.128157,3801.9,3801.2,6.57553706]
[1641192642339,2.00479,3801.8,3801.2,6.57553706]
[1641192642541,2.00479,3801.8,3801.7,1.18439187]
[1641192642742,2.234781,3801.8,3801.7,1.18439187]
[1641192643242,2.00479,3801.8,3801.7,1.18439187]
[1641192643641,2.234781,3801.8,3801.7,1.18439187]
[1641192644044,2.00479,3801.8,3801.7,1.18439187]
[1641192645647,2.00479,3801.8,3801.2,8.36360068]
[1641192648546,0.128157,3801.9,3801.2,8.36360068]
[1641192649049,2.00479,3801.8,3801.2,8.36360068]
[1641192653353,0.128157,3801.7,3801.2,8.36360068]
[1641192656860,0.128157,3801.7,3801.3,0.3726775]
[1641192657158,0.128157,3801.7,3801.2,8.36360068]
[1641192658062,2.00479,3801.8,3801.3,0.37267904]
[1641192659059,0.128157,3801.7,3801.6,0.78913828]
[1641192659259,0.358148,3801.7,3801.6,0.78913828]
[1641192660261,0.128157,3801.7,3801.6,0.78913828]
[1641192660760,0.358148,3801.7,3801.6,0.78913828]
[1641192663665,0.128157,3801.7,3801.6,0.78913828]
[1641192663865,2.00479,3801.8,3801.6,0.78913828]
[1641192664264,2.362938,3801.8,3801.6,0.78913828]
[1641192664468,2.132947,3801.8,3801.6,0.78913828]
[1641192665167,0.229991,3801.7,3801.6,0.78913828]
[1641192665368,2.132947,3801.8,3801.6,0.78913828]
[1641192666572,0.229991,3801.7,3801.6,0.78913828]
[1641192666772,2.132947,3801.8,3801.6,0.78913828]
[1641192668072,2.362938,3801.8,3801.6,0.78913828]
[1641192668673,2.00479,3801.8,3801.6,0.78913828]
[1641192669072,0.229991,3801.7,3801.6,0.78913828]
[1641192669373,2.00479,3801.8,3801.6,0.78913828]
[1641192669575,2.00479,3801.8,3801.6,1.16181881]
[1641192669974,0.229991,3801.7,3801.6,1.16181881]
[1641192670276,0.229991,3801.7,3801.6,0.78913828]
[1641192673286,2.00479,3801.8,3801.6,0.78913828]
[1641192674085,0.229991,3801.7,3801.6,0.78913828]
[1641192674687,0.229991,3801.7,3801.6,1.16182696]
[1641192674885,0.97693017,3801.9,3801.6,1.16182696]
[1641192675089,0.229991,3801.8,3801.6,1.16182696]
[1641192675587,2.234781,3801.8,3801.6,0.78913828]
[1641192676994,2.00479,3801.8,3801.6,0.78913828]
[1641192677295,0.229991,3801.7,3801.6,0.78913828]
[1641192677490,2.00479,3801.8,3801.6,0.78913828]
[1641192677891,0.97693017,3801.9,3801.6,0.78913828]
[1641192678392,0.229991,3801.8,3801.6,0.78913828]
[1641192679095,2.234781,3801.8,3801.6,0.78913828]
[1641192679495,2.234781,3801.8,3801.5,5.26106098]
[1641192679694,2.00479,3801.8,3801.5,5.26106098]
[1641192679897,2.00479,3801.8,3801.6,0.37269484]
[1641192680497,0.229991,3801.7,3801.6,0.37269484]
[1641192680695,2.00479,3801.8,3801.6,0.37269484]
[1641192681697,1.86214314,3801.9,3801.6,0.37269484]
[1641192681897,0.229991,3801.8,3801.6,0.37269484]
[1641192683100,1.86214314,3801.9,3801.6,0.37269484]
[1641192683300,2.234781,3801.8,3801.6,0.37269484]
[1641192685502,3.11999397,3801.8,3801.6,0.37269484]
[1641192686003,4.31305422,3801.8,3801.6,0.37269484]
[1641192686506,2.30826422,3801.8,3801.6,0.37269484]
[1641192687406,4.31305422,3801.8,3801.6,0.37269484]
[1641192687811,2.30826422,3801.8,3801.6,0.37269484]
[1641192688210,0.88521297,3801.7,3801.6,0.37269484]
[1641192690819,4.31305422,3801.8,3801.6,0.37269484]
[1641192691325,4.08306322,3801.8,3801.6,0.37269484]
[1641192691515,4.31305422,3801.8,3801.6,0.37269484]
[1641192693818,5.04960651,3801.8,3801.6,0.37269484]
[1641192695022,4.81961551,3801.8,3801.6,0.37269484]
[1641192695323,5.04960651,3801.8,3801.6,0.37269484]
[1641192695923,3.85654626,3801.8,3801.6,0.37269484]
[1641192697225,3.62655526,3801.8,3801.6,0.37269484]
[1641192698831,0.229991,3801.7,3801.6,0.37269484]
[1641192699231,0.229991,3801.7,3801.5,5.26106098]
[1641192699732,0.78899687,3801.7,3801.5,5.26106098]
[1641192700332,0.55900587,3801.7,3801.5,5.26106098]
[1641192700532,2.00479,3802.1,3801.5,5.26106098]
[1641192700533,1.07753386,3802.2,3801.9,5.26040431]
[1641192700736,49.0978,3804.1,3802.2,11.29]
[1641192700935,24.1563,3804.1,3803.0,1.5]
[1641192701135,3.56860921,3804.2,3803.1,1.5]
[1641192701336,3.56860921,3804.2,3803.8,1.3132511]
[1641192701337,2.46350921,3804.2,3803.8,1.3132511]
[1641192701536,1.12870921,3804.3,3803.8,1.8672511]
[1641192701733,0.53450921,3804.3,3803.8,1.8672511]
[1641192702233,0.47990921,3804.3,3803.9,0.37271092]
[1641192702433,2.00479,3804.4,3803.8,1.3132511]
[1641192702835,2.00479,3804.4,3803.8,1.8841511]
[1641192704337,1.75079,3804.4,3803.8,1.8841511]
[1641192705637,1.75079,3804.4,3803.9,2.00479]
[1641192711342,1.75079,3804.4,3803.9,2.66729]
[1641192711546,1.75079,3804.4,3804.1,5.25744511]
[1641192712544,0.229991,3804.3,3804.1,5.2573588]
[1641192713144,1.75079,3804.4,3804.1,5.2573588]
[1641192713949,0.229991,3804.3,3804.1,5.2573588]
[1641192714546,1.75079,3804.4,3804.1,5.2573588]
[1641192717250,0.229991,3804.3,3804.1,5.2573588]
[1641192719850,1.75079,3804.4,3804.1,5.2573588]
[1641192721157,0.229991,3804.3,3804.1,5.2573588]
[1641192721353,1.008691,3804.3,3803.3,1.31340978]
[1641192721554,1.4999,3804.1,3803.3,1.31340978]
[1641192721955,2.00479,3803.5,3803.3,1.31340978]
[1641192722153,0.229991,3803.4,3803.3,1.31340978]
[1641192725156,2.57539,3803.5,3803.3,1.31340978]
[1641192725557,0.229991,3803.4,3803.3,1.31340978]
[1641192726960,2.703547,3803.5,3803.3,1.31340978]
[1641192727157,0.229991,3803.4,3803.3,1.31340978]
[1641192727560,2.57539,3803.5,3803.3,1.31340978]
[1641192728157,0.229991,3803.4,3803.3,1.31340978]
[1641192729059,2.57539,3803.5,3803.3,1.31340978]
[1641192729259,2.805381,3803.5,3803.3,1.31340978]
[1641192729464,0.800591,3803.5,3803.3,1.31340978]
[1641192730161,2.805381,3803.5,3803.3,1.31340978]
[1641192732261,2.57539,3803.5,3803.3,1.31340978]
[1641192733062,2.805381,3803.5,3803.3,1.31340978]
[1641192738166,2.57539,3803.5,3803.3,1.31340978]
[1641192739066,0.229991,3803.4,3803.3,1.31340978]
[1641192739967,2.57539,3803.5,3803.3,1.31340978]
[1641192740568,2.805381,3803.5,3803.3,1.31340978]
[1641192743472,2.805381,3803.5,3803.2,1.1816916]
[1641192745681,2.805381,3803.5,3803.3,1.1816916]
[1641192746477,2.805381,3803.5,3803.4,0.89114768]
[1641192747179,2.805381,3803.5,3803.1,2.3540543]
[1641192747381,2.805381,3803.5,3803.2,1.1816916]
[1641192747578,1.4999,3803.3,3803.2,1.1816916]
[1641192747778,1.729891,3803.3,3803.2,1.1816916]
[1641192748278,0.229991,3803.3,3802.8,0.74507807]
[1641192748679,2.00479,3803.1,3802.8,0.74507807]
[1641192748879,0.229991,3803.0,3802.8,0.74507807]
[1641192749078,0.229991,3803.0,3802.4,1.77250653]